bitfinex/quotes_BTCUSD_20230111
["timestamp","ask_amount","ask_price","bid_price","bid_amount"]
[1673398798580,0.0632788,17467.0,17466.0,5.11956075]
[1673398799065,0.0632788,17467.0,17466.0,4.95586075]
[1673398801525,0.0632788,17467.0,17466.0,4.89609117]
[1673398801776,0.0632788,17467.0,17466.0,4.84799341]
[1673398802066,0.0632788,17467.0,17466.0,4.89609117]
[1673398802577,0.0632788,17467.0,17466.0,5.06656029]
[1673398803340,0.0632788,17467.0,17466.0,5.0664433]
[1673398804604,0.0632788,17467.0,17466.0,5.23597346]
[1673398806427,0.0632788,17467.0,17466.0,4.89516803]
[1673398806693,0.0632788,17467.0,17466.0,4.89651667]
[1673398807469,0.0632788,17467.0,17466.0,4.95628625]
[1673398807726,0.0632788,17467.0,17466.0,4.95633319]
[1673398808031,0.0632788,17467.0,17466.0,4.75080848]
[1673398808256,0.0632788,17467.0,17466.0,4.79893252]
[1673398808505,0.0632788,17467.0,17466.0,5.78991072]
[1673398809025,0.0632788,17467.0,17466.0,6.48991072]
[1673398809314,8e-07,17467.0,17466.0,6.48991072]
[1673398810624,8e-07,17467.0,17466.0,5.9791107]
[1673398811371,8e-07,17467.0,17466.0,6.4914441]
[1673398812646,8e-07,17467.0,17466.0,5.9791107]
[1673398812899,8e-07,17467.0,17466.0,6.49180299]
[1673398813146,8e-07,17467.0,17466.0,6.2227637]
[1673398815217,8e-07,17467.0,17466.0,5.5227637]
[1673398816272,8e-07,17467.0,17466.0,5.79191627]
[1673398816536,8e-07,17467.0,17466.0,5.27910075]
[1673398818091,8e-07,17467.0,17466.0,5.74189945]
[1673398818409,8e-07,17467.0,17466.0,5.21473319]
[1673398818857,8e-07,17467.0,17466.0,5.74189945]
[1673398819382,8e-07,17467.0,17466.0,5.21473319]
[1673398820163,8e-07,17467.0,17466.0,5.26285723]
[1673398820434,8e-07,17467.0,17466.0,5.79002349]
[1673398821217,8e-07,17467.0,17466.0,5.52099415]
[1673398821470,8e-07,17467.0,17466.0,5.35709415]
[1673398821735,8e-07,17467.0,17466.0,4.82992789]
[1673398821955,8e-07,17467.0,17466.0,5.35709415]
[1673398822231,8e-07,17467.0,17466.0,4.82992789]
[1673398822517,8e-07,17467.0,17466.0,4.87007251]
[1673398823009,2.40471731,17471.0,17467.0,0.3]
[1673398823266,2.40471731,17471.0,17469.0,0.4276765]
[1673398823267,1.63997564,17471.0,17469.0,0.4276765]
[1673398823586,1.63997564,17471.0,17470.0,1.803482]
[1673398824925,1.63997564,17471.0,17470.0,2.053482]
[1673398825444,1.63997564,17471.0,17470.0,1.753482]
[1673398829604,1.63997564,17471.0,17470.0,1.75327481]
[1673398830429,1.97517187,17471.0,17470.0,0.25]
[1673398830680,2.50233813,17471.0,17470.0,0.25]
[1673398831487,2.75959696,17471.0,17470.0,0.25]
[1673398832800,2.75959696,17471.0,17468.0,2.19313866]
[1673398833062,0.52711459,17470.0,17468.0,1.93653276]
[1673398833309,0.1636,17469.0,17468.0,1.93653276]
[1673398833834,0.1636,17469.0,17468.0,1.76546216]
[1673398834376,0.1636,17469.0,17468.0,1.93653276]
[1673398834891,0.1636,17469.0,17468.0,2.12435116]
[1673398835658,0.1636,17469.0,17468.0,1.503788]
[1673398836145,0.1636,17469.0,17468.0,1.144899]
[1673398838427,0.1636,17469.0,17467.0,1.8066696]
[1673398838684,0.1636,17469.0,17467.0,2.3791496]
[1673398838933,0.1636,17469.0,17468.0,0.358889]
[1673398839441,0.1636,17469.0,17467.0,2.3791506]
[1673398839949,0.1636,17469.0,17468.0,0.358889]
[1673398840194,0.1636,17469.0,17468.0,0.572475]
[1673398840965,0.1636,17469.0,17468.0,0.931364]
[1673398841231,0.1636,17469.0,17468.0,1.503839]
[1673398851247,0.1636,17469.0,17468.0,2.09767545]
[1673398852001,0.1636,17469.0,17468.0,2.26874605]
[1673398853610,0.1636,17469.0,17468.0,2.56874605]
[1673398854116,0.1636,17469.0,17468.0,2.82535195]
[1673398854405,0.1636,17469.0,17468.0,3.14352743]
[1673398854620,0.1636,17469.0,17468.0,2.26874605]
[1673398857165,0.1639,17470.0,17468.0,2.26874605]
[1673398857414,0.1639,17470.0,17469.0,0.381426]
[1673398857659,0.1639,17470.0,17469.0,1.444884]
[1673398857919,0.1639,17470.0,17469.0,1.803773]
[1673398860649,0.1639,17470.0,17469.0,1.9748436]
[1673398861405,2.50705412,17471.0,17469.0,1.503773]
[1673398861648,1.9801453,17471.0,17470.0,0.081397]
[1673398861893,1.9801453,17471.0,17470.0,0.572409]
[1673398862656,1.9881453,17471.0,17470.0,0.572409]
[1673398862911,1.9881453,17471.0,17470.0,1.144818]
[1673398863139,1.9801453,17471.0,17470.0,1.144818]
[1673398863422,1.9801453,17471.0,17470.0,1.208818]
[1673398863423,1.9861453,17471.0,17470.0,1.208818]
[1673398866005,2.24340413,17471.0,17470.0,1.208818]
[1673398866251,1.9861453,17471.0,17470.0,1.208818]
[1673398868114,1.81464907,17471.0,17470.0,1.208818]
[1673398869716,1.1699,17471.0,17470.0,1.208818]
[1673398869901,1.1699,17471.0,17470.0,1.867707]
[1673398870155,1.1699,17471.0,17470.0,2.43694912]
[1673398871410,1.1699,17471.0,17470.0,2.60801972]
[1673398871411,1.00592049,17471.0,17470.0,2.60801972]
[1673398871676,1.00592049,17471.0,17470.0,3.16462562]
[1673398871929,1.00592049,17471.0,17470.0,3.48572639]
[1673398872189,1.00592049,17471.0,17470.0,3.65679699]
[1673398872972,1.00592049,17471.0,17470.0,3.94299699]
[1673398873741,1.00592049,17471.0,17470.0,3.99112103]
[1673398874855,1.00592049,17471.0,17470.0,4.16219163]
[1673398875067,1.00592049,17471.0,17470.0,3.99108759]
[1673398875329,1.00592049,17471.0,17470.0,3.82000147]
[1673398875571,1.00592049,17471.0,17470.0,3.4989007]
[1673398875816,1.00592049,17471.0,17470.0,3.81976877]
[1673398876106,1.00592049,17471.0,17470.0,3.45077666]
[1673398876320,1.00592049,17471.0,17470.0,3.77163859]
[1673398877096,1.00592049,17471.0,17470.0,4.11377979]
[1673398877379,1.00592049,17471.0,17470.0,3.77163859]
[1673398878625,1.00592049,17471.0,17470.0,3.94272471]
[1673398879129,1.00592049,17471.0,17470.0,3.77153879]
[1673398879849,1.00592049,17471.0,17470.0,3.90064885]
[1673398880097,1.00592049,17471.0,17470.0,3.90079762]
[1673398880843,1.00592049,17471.0,17470.0,3.61459762]
[1673398881091,1.00592049,17471.0,17470.0,3.44340158]
[1673398881336,1.00592049,17471.0,17470.0,3.44543747]
[1673398881588,1.00592049,17471.0,17470.0,2.86596719]
[1673398881831,1.00592049,17471.0,17470.0,3.12253965]
[1673398883172,1.00592049,17471.0,17470.0,2.86596719]
[1673398883428,1.00592049,17471.0,17470.0,3.12253965]
[1673398883711,1.00592049,17471.0,17470.0,5.42382915]
[1673398883974,0.01058291,17473.0,17471.0,0.42157977]
[1673398884259,0.01058291,17473.0,17472.0,4.6857352]
[1673398884499,0.00558291,17473.0,17472.0,5.38442791]
[1673398884755,0.00558291,17473.0,17472.0,5.3843952]
[1673398885279,0.00758291,17473.0,17472.0,5.3843952]
[1673398885791,0.00758291,17473.0,17472.0,5.55507594]
[1673398886357,0.00558291,17473.0,17472.0,5.3843952]
[1673398886598,0.00758291,17473.0,17472.0,5.5223952]
[1673398887077,0.00758291,17473.0,17472.0,5.35136117]
[1673398887891,0.00758291,17473.0,17472.0,5.52275827]
[1673398888165,0.00758291,17473.0,17472.0,5.35172669]
[1673398892275,0.00758291,17473.0,17472.0,4.98073398]
[1673398892810,0.00758291,17473.0,17472.0,5.21371139]
[1673398893060,0.00758291,17473.0,17472.0,4.72454071]
[1673398893327,0.00758291,17473.0,17472.0,5.57468165]
[1673398893576,0.00758291,17473.0,17472.0,5.81611104]
[1673398894381,0.00758291,17473.0,17472.0,5.81598764]
[1673398895173,0.00258291,17473.0,17472.0,5.81598764]
[1673398896471,0.00258291,17473.0,17472.0,5.81587171]
[1673398897560,0.00258291,17473.0,17472.0,5.58294232]
[1673398897823,0.00258291,17473.0,17472.0,4.7953994]
[1673398898128,0.00258291,17473.0,17472.0,5.32664019]
[1673398898617,0.00258291,17473.0,17472.0,5.32679543]
[1673398898875,0.00258291,17473.0,17472.0,6.19856766]
[1673398899406,0.00258291,17473.0,17472.0,6.61941769]
[1673398899951,0.00258291,17473.0,17472.0,6.57129365]
[1673398900769,0.00258291,17473.0,17472.0,6.39984441]
[1673398901213,0.00258291,17473.0,17472.0,6.44796845]
[1673398901504,0.00258291,17473.0,17472.0,7.14796845]
[1673398902282,0.00258291,17473.0,17472.0,7.57501175]
[1673398902548,0.00258291,17473.0,17472.0,7.14796845]
[1673398902817,0.00258291,17473.0,17472.0,7.57501175]
[1673398903066,0.00258291,17473.0,17472.0,7.14796845]
[1673398903327,0.00258291,17473.0,17472.0,7.31941769]
[1673398903848,0.00176242,17473.0,17472.0,7.31941769]
[1673398904836,0.00176242,17473.0,17472.0,6.97778305]
[1673398905104,0.00080207,17473.0,17472.0,6.92965901]
[1673398905832,0.00080207,17473.0,17472.0,6.50261571]
[1673398906350,0.00080207,17473.0,17472.0,6.92861329]
[1673398907106,0.00080207,17473.0,17472.0,6.50261571]
[1673398907374,7e-08,17473.0,17472.0,7.62222157]
[1673398907648,0.01057579,17475.0,17473.0,0.3]
[1673398907896,0.01057579,17475.0,17474.0,4.83505304]
[1673398908140,0.01057579,17475.0,17474.0,5.43505304]
[1673398908642,0.01057579,17475.0,17474.0,5.66341281]
[1673398908893,0.01257579,17475.0,17474.0,5.91341281]
[1673398909136,0.01057579,17475.0,17474.0,5.91341281]
[1673398909394,0.01257579,17475.0,17474.0,6.05241281]
[1673398911135,0.01257579,17475.0,17474.0,6.22283706]
[1673398912100,0.01257579,17475.0,17474.0,6.55716131]
[1673398912363,0.01101997,17476.0,17475.0,0.3]
[1673398912620,0.01101997,17476.0,17475.0,3.78396292]
[1673398912870,0.01101997,17476.0,17475.0,4.39732292]
[1673398913374,0.01201997,17476.0,17475.0,4.53052144]
[1673398913634,0.01201997,17476.0,17475.0,4.95658206]
[1673398913888,0.01201997,17476.0,17475.0,5.31551342]
[1673398914640,0.01201997,17476.0,17475.0,5.65654186]
[1673398915413,0.01201997,17476.0,17475.0,5.4863202]
[1673398916935,0.01201997,17476.0,17475.0,4.95660071]
[1673398917197,0.01201997,17476.0,17475.0,4.95659967]
[1673398919448,0.01201997,17476.0,17475.0,5.15167342]
[1673398921253,0.01142778,17477.0,17476.0,0.3]
[1673398921516,0.01142778,17477.0,17476.0,4.81787479]
[1673398921774,0.01142778,17477.0,17476.0,5.39138549]
[1673398922028,0.01142778,17477.0,17476.0,5.81787603]
[1673398922302,0.01142778,17477.0,17476.0,4.81787603]
[1673398922559,0.01142778,17477.0,17476.0,6.10910773]
[1673398923088,0.01242778,17477.0,17476.0,5.95601535]
[1673398923889,0.00849988,17477.0,17476.0,5.95601535]
[1673398924421,0.00849988,17477.0,17476.0,5.95619155]
[1673398925227,0.00849988,17477.0,17476.0,6.33462884]
[1673398926570,0.00849988,17477.0,17476.0,6.33468884]
[1673398927062,0.00849988,17477.0,17476.0,6.76117436]
[1673398927864,0.00849988,17477.0,17476.0,7.76117436]
[1673398929416,0.00849988,17477.0,17476.0,7.79613602]
[1673398931177,0.00849988,17477.0,17476.0,7.84427534]
[1673398931689,0.00849988,17477.0,17476.0,7.84421534]
[1673398931953,0.00389081,17477.0,17476.0,7.84421534]
[1673398932209,0.00389081,17477.0,17476.0,7.79607602]
[1673398933739,0.00389081,17477.0,17476.0,8.175612]
[1673398934041,0.01221374,17479.0,17476.0,8.6885428]
[1673398934256,0.01221374,17479.0,17478.0,1.19708476]
[1673398934511,0.01221374,17479.0,17478.0,6.11764635]
[1673398934770,0.01221374,17479.0,17478.0,6.12614635]
[1673398934998,0.01221374,17479.0,17478.0,5.59428385]
[1673398935255,0.01221374,17479.0,17478.0,5.84428385]
[1673398935506,0.01221374,17479.0,17478.0,6.37614635]
[1673398935990,0.01221374,17479.0,17478.0,5.84428385]
[1673398936238,0.01221374,17479.0,17478.0,5.6736142]
[1673398936756,0.02921374,17479.0,17478.0,5.6796142]
[1673398937000,0.02921374,17479.0,17478.0,5.85028385]
[1673398937496,0.02921374,17479.0,17478.0,5.68778385]
[1673398937744,0.02921374,17479.0,17478.0,6.21964635]
[1673398938254,0.02921374,17479.0,17478.0,5.68778385]
[1673398938737,0.02921374,17479.0,17478.0,6.21964635]
[1673398939498,0.02921374,17479.0,17478.0,5.87845506]
[1673398939760,0.02921374,17479.0,17478.0,5.87851506]
[1673398940024,0.02921374,17479.0,17478.0,6.87851506]
[1673398940335,0.02921374,17479.0,17478.0,5.87851506]
[1673398941319,0.02921374,17479.0,17478.0,6.04241506]
[1673398943115,0.02921374,17479.0,17478.0,5.61592594]
[1673398943361,0.02921374,17479.0,17478.0,6.04222625]
[1673398943615,0.01221374,17479.0,17478.0,6.03622625]
[1673398943877,0.00602346,17479.0,17478.0,6.17522625]
[1673398944384,0.00602346,17479.0,17478.0,6.87522625]
[1673398944889,0.00602346,17479.0,17478.0,6.87516625]
[1673398945356,0.00602346,17479.0,17478.0,6.34330375]
[1673398945860,0.00602346,17479.0,17478.0,5.64330375]
[1673398946356,0.00602346,17479.0,17478.0,6.17516625]
[1673398946611,0.00602346,17479.0,17478.0,5.74886594]
[1673398947105,0.00602346,17479.0,17478.0,6.51952145]
[1673398947360,0.00602346,17479.0,17478.0,5.74886594]
[1673398948149,0.00602346,17479.0,17478.0,6.11332219]
[1673398948400,0.00602346,17479.0,17478.0,6.62625299]
[1673398948656,0.00602346,17479.0,17478.0,6.11332219]
[1673398948910,0.00602346,17479.0,17478.0,7.32640706]
[1673398951787,0.00602346,17479.0,17478.0,6.79454456]
[1673398952213,0.00602346,17479.0,17478.0,5.91700344]
[1673398953003,0.00602346,17479.0,17478.0,5.21700344]
[1673398957047,0.00602346,17479.0,17478.0,6.09480035]
[1673398963128,0.00602346,17479.0,17478.0,7.09480035]
[1673398963376,0.00602346,17479.0,17478.0,6.62666285]
[1673398963878,0.00457448,17479.0,17478.0,6.62666285]
[1673398964396,0.00457448,17479.0,17478.0,7.62666285]
[1673398964649,0.00457448,17479.0,17478.0,6.62666285]
[1673398965147,0.00457448,17479.0,17478.0,6.09480035]
[1673398965649,0.00457448,17479.0,17478.0,6.60772168]
[1673398965910,0.00457448,17479.0,17478.0,5.28002477]
[1673398966171,0.00457448,17479.0,17478.0,4.38002477]
[1673398966408,0.00457448,17479.0,17478.0,5.40736919]
[1673398966904,0.00457448,17479.0,17478.0,5.69343919]
[1673398967659,0.00457448,17479.0,17478.0,5.99343919]
[1673398968164,0.00457448,17479.0,17478.0,5.56609477]
[1673398968694,0.00457448,17479.0,17478.0,5.05317344]
[1673398968926,0.00457448,17479.0,17478.0,5.71221271]
[1673398969182,0.00457448,17479.0,17478.0,5.05317344]
[1673398969458,0.00457448,17479.0,17478.0,5.57613136]
[1673398969695,0.00457448,17479.0,17478.0,5.58047055]
[1673398969962,0.00457448,17479.0,17478.0,5.05317344]
[1673398970199,0.00457448,17479.0,17478.0,6.03710985]
[1673398970446,0.00457448,17479.0,17478.0,5.41838351]
[1673398970718,0.00457448,17479.0,17478.0,5.93131431]
[1673398973014,0.00457448,17479.0,17478.0,6.45786098]
[1673398973296,0.00457448,17479.0,17478.0,5.93131431]
[1673398973805,0.00457448,17479.0,17478.0,6.48567225]
[1673398974057,0.00457448,17479.0,17478.0,5.93131431]
[1673398974620,0.00457448,17479.0,17478.0,6.49688318]
[1673398974783,0.00457448,17479.0,17478.0,5.93131431]
[1673398976299,0.00457448,17479.0,17478.0,5.93128431]
[1673398978552,0.00457448,17479.0,17478.0,6.57433344]
[1673398981567,0.00457448,17479.0,17478.0,6.06140264]
[1673398982388,0.00457448,17479.0,17478.0,6.06133748]
[1673398982902,0.00457448,17479.0,17478.0,5.69612741]
[1673398983924,0.00364917,17479.0,17478.0,5.92002312]
[1673398985694,0.00364917,17479.0,17478.0,6.56264112]
[1673398985962,0.00364917,17479.0,17478.0,5.92002312]
[1673398986214,0.00364917,17479.0,17478.0,5.98032863]
[1673398986493,0.00364917,17479.0,17478.0,6.09718511]
[1673398986744,0.00364917,17479.0,17478.0,5.38989274]
[1673398987013,0.00364917,17479.0,17478.0,5.68749677]
[1673398988380,0.33963941,17482.0,17480.0,0.3]
[1673398988693,0.50353941,17482.0,17481.0,1.225292]
[1673398988955,0.50353941,17482.0,17481.0,1.144098]
[1673398989472,0.50453941,17482.0,17481.0,1.144098]
[1673398989743,0.50353941,17482.0,17481.0,1.394098]
[1673398990034,0.50353941,17482.0,17481.0,1.426098]
[1673398990305,0.1639,17482.0,17481.0,1.426098]
[1673398992786,0.33539623,17482.0,17481.0,1.426098]
[1673398993018,0.1639,17482.0,17481.0,2.10655256]
[1673398993272,0.1639,17482.0,17481.0,2.63634605]
[1673398993512,0.1639,17482.0,17481.0,3.37234933]
[1673398994280,0.1639,17482.0,17481.0,3.20142584]
[1673398994536,0.1639,17482.0,17481.0,3.5432687]
[1673398998403,0.1639,17482.0,17481.0,3.71419966]
[1673398998652,0.1639,17482.0,17481.0,3.3723568]
[1673399001960,0.1639,17482.0,17481.0,3.54325896]
[1673399003466,0.1639,17482.0,17481.0,3.37234162]
[1673399006331,0.1639,17482.0,17481.0,3.40851119]
[1673399007366,0.1639,17482.0,17481.0,3.75034431]
[1673399007867,0.1639,17482.0,17481.0,3.57944692]
[1673399008377,0.1639,17482.0,17481.0,3.92128004]
[1673399009847,0.17824418,17483.0,17481.0,3.92128004]
[1673399010101,0.17824418,17483.0,17482.0,0.5518904]
[1673399010352,0.17824418,17483.0,17482.0,1.6959224]
[1673399011107,0.17824418,17483.0,17482.0,2.51263964]
[1673399011355,0.02954418,17483.0,17482.0,2.51863964]
[1673399011606,0.02943707,17483.0,17482.0,2.51863964]
[1673399012659,0.02943707,17483.0,17482.0,2.34770524]
[1673399018777,0.02943707,17483.0,17482.0,2.26674924]
[1673399019024,0.02943707,17483.0,17482.0,2.62561924]
[1673399029419,0.2009333,17483.0,17482.0,2.62561924]
[1673399030518,0.02943707,17483.0,17482.0,2.62561924]
[1673399031298,0.2009333,17483.0,17482.0,2.62561924]
[1673399033909,0.2009333,17483.0,17482.0,1.758902]
[1673399034217,1.33321157,17483.0,17482.0,0.828016]
[1673399035818,1.5047971,17483.0,17482.0,0.828016]
[1673399036106,1.33323745,17483.0,17482.0,0.828016]
[1673399036381,2.64898279,17483.0,17482.0,0.828016]
[1673399037108,1.5047971,17483.0,17482.0,0.828016]
[1673399037370,1.33323631,17483.0,17482.0,0.828016]
[1673399038365,1.5047971,17483.0,17482.0,0.828016]
[1673399038609,1.33322856,17483.0,17482.0,0.828016]
[1673399039900,1.17032856,17483.0,17482.0,0.828016]
[1673399040878,0.45820912,17483.0,17482.0,0.828016]
[1673399046686,0.20095029,17483.0,17482.0,0.828016]
[1673399047955,0.45820912,17483.0,17482.0,0.828016]
[1673399048955,0.20095029,17483.0,17482.0,0.828016]
[1673399049212,0.45820912,17483.0,17482.0,0.828016]
[1673399054160,0.20095029,17483.0,17482.0,0.828016]
[1673399054695,0.45820912,17483.0,17482.0,0.828016]
[1673399055641,0.20095029,17483.0,17482.0,0.828016]
[1673399055894,0.45820912,17483.0,17482.0,0.828016]
[1673399058694,0.20095029,17483.0,17482.0,1.128016]
[1673399058946,0.20095029,17483.0,17482.0,1.700032]
[1673399059196,0.20095029,17483.0,17482.0,2.058902]
[1673399061452,0.36395029,17483.0,17482.0,2.058902]
[1673399061705,0.36395029,17483.0,17482.0,2.35374749]
[1673399061961,0.36395029,17483.0,17482.0,2.29649989]
[1673399061962,0.02943707,17483.0,17482.0,2.29649989]
[1673399062282,0.02943707,17483.0,17482.0,3.32100611]
[1673399062502,0.0293241,17483.0,17482.0,3.79190483]
[1673399062739,0.0293241,17483.0,17482.0,3.9629296]
[1673399063515,0.0293241,17483.0,17482.0,3.79165906]
[1673399064566,0.0293241,17483.0,17482.0,3.99692202]
[1673399065112,0.0293241,17483.0,17482.0,3.6550889]
[1673399065627,0.0293241,17483.0,17482.0,3.99639963]
[1673399067560,0.0293241,17483.0,17482.0,3.2951137]
[1673399067814,0.0293241,17483.0,17482.0,3.94823842]
[1673399068593,0.0293241,17483.0,17482.0,3.2951137]
[1673399068878,0.0293241,17483.0,17482.0,3.99655683]
[1673399069636,0.0293241,17483.0,17482.0,3.82492385]
[1673399070699,0.0293241,17483.0,17482.0,3.29498757]
[1673399071492,0.0293241,17483.0,17482.0,3.82492385]
[1673399071752,0.0293241,17483.0,17482.0,3.29498757]
[1673399072026,0.0293241,17483.0,17482.0,4.7544045]
[1673399072291,0.0263917,17483.0,17482.0,4.80415457]
[1673399072551,0.0263917,17483.0,17482.0,5.4544045]
[1673399072799,0.0263917,17483.0,17482.0,5.12159377]
[1673399073560,0.0263917,17483.0,17482.0,5.46234707]
[1673399074348,0.0263917,17483.0,17482.0,5.51209714]
[1673399075448,0.0263917,17483.0,17482.0,5.17134384]
[1673399076385,0.0263917,17483.0,17482.0,5.12159377]
[1673399077224,0.0263917,17483.0,17482.0,5.46222382]
[1673399079096,0.0263917,17483.0,17482.0,5.7176553]
[1673399079363,0.0263917,17483.0,17482.0,5.46222382]
[1673399079626,0.0263917,17483.0,17482.0,5.290216]
[1673399079884,0.0263917,17483.0,17482.0,5.46222382]
[1673399082452,0.01566659,17485.0,17482.0,5.46222382]
[1673399082699,0.01566659,17485.0,17484.0,1.34875]
[1673399082951,0.01566659,17485.0,17484.0,4.295379]
[1673399083242,0.01566659,17485.0,17484.0,4.009429]
[1673399083475,0.01566659,17485.0,17484.0,2.946629]
[1673399083720,0.01566659,17485.0,17484.0,3.196629]
[1673399084245,0.01566659,17485.0,17484.0,3.206629]
[1673399084246,0.01666659,17485.0,17484.0,3.206629]
[1673399084496,0.01666659,17485.0,17484.0,2.634678]
[1673399085253,0.01666659,17485.0,17484.0,3.25310142]
[1673399086521,0.01666659,17485.0,17484.0,3.25325861]
[1673399089786,0.01666659,17485.0,17484.0,3.25310142]
[1673399090043,0.01666659,17485.0,17484.0,3.25325861]
[1673399090875,0.01666659,17485.0,17484.0,3.55325861]
[1673399091320,0.01666659,17485.0,17484.0,3.25325861]
[1673399092346,0.01666659,17485.0,17484.0,3.25310142]
[1673399095237,0.01666659,17485.0,17484.0,3.55310142]
[1673399096041,0.01666659,17485.0,17484.0,3.55325861]
[1673399099457,0.01666659,17485.0,17484.0,3.72350285]
[1673399099711,0.01666659,17485.0,17484.0,4.0988996]
[1673399099970,0.01666659,17485.0,17484.0,4.0988715]
[1673399100209,0.01666659,17485.0,17484.0,3.97886921]
[1673399100716,0.01666659,17485.0,17484.0,3.71350285]
[1673399100717,0.01566659,17485.0,17484.0,3.71350285]
[1673399100939,0.01666659,17485.0,17484.0,3.72250285]
[1673399101279,0.01666659,17485.0,17484.0,3.71350285]
[1673399101458,0.01666659,17485.0,17484.0,4.12936312]
[1673399101703,0.01666659,17485.0,17484.0,4.29741793]
[1673399102720,0.01866659,17485.0,17484.0,4.29741793]
[1673399103503,0.01866659,17485.0,17484.0,4.29732962]
[1673399105344,0.01866659,17485.0,17484.0,4.63327327]
[1673399105818,0.01866659,17485.0,17484.0,5.23327327]
[1673399106391,0.01866659,17485.0,17484.0,4.63327327]
[1673399108391,0.01866659,17485.0,17484.0,4.67832466]
[1673399108656,0.01866659,17485.0,17484.0,4.36343068]
[1673399108932,0.01866659,17485.0,17484.0,3.6742198]
[1673399109432,0.01866659,17485.0,17484.0,3.77674607]
[1673399109685,0.01866659,17485.0,17484.0,4.97069374]
[1673399109938,0.01866659,17485.0,17484.0,6.0791573]
[1673399110206,0.01866659,17485.0,17484.0,6.1299834]
[1673399110729,0.01866659,17485.0,17484.0,6.8299834]
[1673399112251,0.01866659,17485.0,17484.0,6.8384834]
[1673399113353,0.01866659,17485.0,17484.0,7.8384834]
[1673399113869,5.9e-07,17485.0,17484.0,7.8384834]
[1673399114352,0.01400046,17488.0,17485.0,0.00453322]
[1673399114620,0.01400046,17488.0,17487.0,0.75912193]
[1673399114876,0.01400046,17488.0,17487.0,3.9623252]
[1673399115139,0.01400046,17488.0,17487.0,4.14258175]
[1673399115395,0.01400046,17488.0,17487.0,4.10025565]
[1673399115695,0.01400046,17488.0,17487.0,4.71233107]
[1673399116220,0.01400046,17488.0,17487.0,3.83031937]
[1673399116480,0.01400046,17488.0,17487.0,4.49813334]
[1673399117065,0.01400046,17488.0,17487.0,4.48813334]
[1673399117329,0.01400046,17488.0,17487.0,4.35754218]
[1673399118391,0.01400046,17488.0,17487.0,4.23704827]
[1673399118639,0.01400046,17488.0,17487.0,3.5692343]
[1673399118885,0.01400046,17488.0,17487.0,3.67010633]
[1673399119145,0.01400046,17488.0,17487.0,3.67007702]
[1673399120726,0.01400046,17488.0,17487.0,4.2000133]
[1673399120948,0.01400046,17488.0,17487.0,3.67007702]
[1673399121181,0.01400046,17488.0,17487.0,4.2000133]
[1673399121448,0.01400046,17488.0,17487.0,4.53450446]
[1673399121701,0.01400046,17488.0,17487.0,4.70507401]
[1673399122014,0.01400046,17488.0,17487.0,4.5341931]
[1673399122233,0.01400046,17488.0,17487.0,4.70507401]
[1673399122490,0.01400046,17488.0,17487.0,5.40507401]
[1673399123258,0.01400046,17488.0,17487.0,5.23410982]
[1673399124007,0.01400046,17488.0,17487.0,5.06332122]
[1673399124810,0.01400046,17488.0,17487.0,4.9624785]
[1673399125040,0.01400046,17488.0,17487.0,4.70728417]
[1673399125286,0.01400046,17488.0,17487.0,5.05388062]
[1673399126306,0.01400046,17488.0,17487.0,5.43026204]
[1673399127819,0.01400046,17488.0,17487.0,5.04941222]
[1673399128608,0.01400046,17488.0,17487.0,5.39033904]
[1673399128841,0.01400046,17488.0,17487.0,5.22020082]
[1673399129348,0.01608928,17489.0,17487.0,5.05023819]
[1673399129639,0.01608928,17489.0,17488.0,3.29188647]
[1673399129874,0.01608928,17489.0,17488.0,4.09536136]
[1673399130122,0.01608928,17489.0,17488.0,4.0953605]
[1673399130369,0.01608928,17489.0,17488.0,4.22329847]
[1673399130641,0.01608928,17489.0,17488.0,4.92329847]
[1673399130878,0.01608928,17489.0,17488.0,5.17329847]
[1673399131163,0.01608928,17489.0,17488.0,5.00318544]
[1673399131399,0.01608928,17489.0,17488.0,5.17329847]
[1673399131653,0.01608928,17489.0,17488.0,5.17729847]
[1673399131922,0.01608928,17489.0,17488.0,5.34736464]
[1673399132223,0.01608928,17489.0,17488.0,5.17729847]
[1673399132464,0.01608928,17489.0,17488.0,4.47726505]
[1673399132724,0.01608928,17489.0,17488.0,5.00497863]
[1673399133807,0.01608928,17489.0,17488.0,4.47726505]
[1673399134052,0.01608928,17489.0,17488.0,4.98721796]
[1673399134564,0.01608928,17489.0,17488.0,4.45950438]
[1673399134848,0.01608928,17489.0,17488.0,4.91954806]
[1673399135098,0.01608928,17489.0,17488.0,4.98721619]
[1673399135353,0.01608928,17489.0,17488.0,4.91954806]
[1673399135603,0.01608928,17489.0,17488.0,4.98722867]
[1673399135862,0.01608928,17489.0,17488.0,4.39183448]
[1673399136137,0.01608928,17489.0,17488.0,4.98722738]
[1673399136390,0.01608928,17489.0,17488.0,5.15732452]
[1673399139191,0.02037423,17490.0,17489.0,0.3]
[1673399139439,0.02037423,17490.0,17489.0,3.29390441]
[1673399139701,0.02037423,17490.0,17489.0,3.35099264]
[1673399140252,0.02037423,17490.0,17489.0,3.60099264]
[1673399140510,0.02037423,17490.0,17489.0,3.54390441]
[1673399140785,0.02037423,17490.0,17489.0,3.87162292]
[1673399141040,0.02037423,17490.0,17489.0,2.88790202]
[1673399141299,0.02037423,17490.0,17489.0,2.29395435]
[1673399141573,0.02037423,17490.0,17489.0,2.28545435]
[1673399142902,0.02037423,17490.0,17489.0,2.28710664]
[1673399143153,0.02037423,17490.0,17489.0,2.34211761]
[1673399144489,0.02037423,17490.0,17489.0,2.04046532]
[1673399147938,0.02037423,17490.0,17489.0,2.04054792]
[1673399148966,0.02037423,17490.0,17489.0,2.04046532]
[1673399149218,0.02037423,17490.0,17489.0,2.04054792]
[1673399149965,0.02037423,17490.0,17489.0,2.04046532]
[1673399150223,0.02037423,17490.0,17489.0,2.04054792]
[1673399151488,0.02037423,17490.0,17489.0,2.34054792]
[1673399152247,0.02037423,17490.0,17489.0,2.04054792]
[1673399153272,0.02037423,17490.0,17489.0,2.50165582]
[1673399153768,0.02037423,17490.0,17489.0,2.64265582]
[1673399154270,0.02037423,17490.0,17489.0,2.34265582]
[1673399154519,0.02037423,17490.0,17489.0,2.17254792]
[1673399156141,0.02037423,17490.0,17489.0,2.34265582]
[1673399156409,0.02037423,17490.0,17489.0,2.17254792]
[1673399158244,0.02037423,17490.0,17489.0,2.17246532]
[1673399159829,0.02037423,17490.0,17489.0,3.00144322]
[1673399160080,0.18377423,17490.0,17489.0,3.00144322]
[1673399160325,0.18377423,17490.0,17489.0,2.34257322]
[1673399160578,0.18369863,17490.0,17489.0,2.17246532]
[1673399161101,0.18369863,17490.0,17489.0,2.64257322]
[1673399161330,0.02029863,17490.0,17489.0,2.64257322]
[1673399161849,0.02029863,17490.0,17489.0,2.64265582]
[1673399163652,0.02029863,17490.0,17489.0,2.17254792]
[1673399164407,0.02029863,17490.0,17489.0,2.47254792]
[1673399164659,0.02029863,17490.0,17489.0,2.17254792]
[1673399165720,0.02029863,17490.0,17489.0,2.47254792]
[1673399166011,0.02029863,17490.0,17489.0,2.17254792]